fUSD/lending_fUSD_20241230
["ID","MTS","AMOUNT","RATE_DAILY","PERIOD"]
[347194628,1735558238795,-150.0,0.00012459,2]
[347194631,1735558238805,-200.0,0.00012464,2]
[347194633,1735558238815,-500.0,0.00012473,2]
[347194635,1735558238825,-263.00746437,0.00012493,2]
[347194637,1735558238834,-150.0,0.00012493,2]
[347194639,1735558238844,-154.08043873,0.00012493,2]
[347194641,1735558238854,-96828.44364401,0.00012499,2]
[347194643,1735558238863,-741.21,0.00012499,2]
[347194646,1735558238872,-7094.62303787,0.000125,2]
[347194649,1735558238881,-3232042.88813932,0.000125,2]
[347194652,1735558238891,-29447645.71381003,0.000125,2]
[347194656,1735558238901,-5899.571,0.000125,2]
[347194658,1735558238911,-421742.99699795,0.000125,2]
[347194660,1735558238920,-509.42,0.000125,2]
[347194662,1735558238930,-288.15555506,0.000125,2]
[347194664,1735558238939,-200.0,0.000125,2]
[347194666,1735558238948,-200.0,0.000125,2]
[347194668,1735558238958,-2000.0,0.000125,2]
[347194670,1735558238967,-200.0,0.000125,2]
[347194672,1735558238977,-978511.89865467,0.000125,2]
[347194674,1735558238989,-1641.99411416,0.000125,2]
[347194676,1735558239001,-5849.83063252,0.000125,2]
[347194679,1735558239013,-4033.80000002,0.000125,2]
[347194801,1735558240200,-1721.9445048,0.00012399,2]
[347194808,1735558240247,-4387.86978279,0.00012399,2]
[347194811,1735558240256,-180776.90509955,0.000125,2]
[347194830,1735558240521,-84.39916711,0.000125,2]
[347194832,1735558240532,-426.45080788,0.000125,2]
[347194834,1735558240543,-24798.44681202,0.000125,2]
[347194837,1735558240563,-611.59357541,0.000125,2]
[347194839,1735558240575,-511.75470699,0.000125,2]
[347195133,1735558243408,-925.43211547,0.000125,2]
[347195137,1735558243436,-13880.54347025,0.000125,2]
[347195140,1735558243457,-324.686543,0.000125,2]
[347195143,1735558243469,-384.8,0.000125,2]
[347195151,1735558243535,-2559.86854406,0.000125,2]
[347195279,1735558246321,-13444.53837763,0.00012199,2]
[347195280,1735558246354,-755.60676301,0.00012199,2]
[347195284,1735558246383,-9079.55488623,0.00012199,2]
[347195285,1735558246412,-2996.61865781,0.00012199,2]
[347195286,1735558246525,-4508.5399997,0.00012199,2]
[347195287,1735558246536,-6297.21761562,0.00012199,2]
[347195288,1735558246545,-6109.81428759,0.00012399,2]
[347195289,1735558246554,-7637.11920898,0.000125,2]
[347195292,1735558246802,-85.23126458,0.000125,2]
[347195293,1735558247183,-680.24347987,0.000125,2]
[347195294,1735558247194,-2371.2957635,0.000125,2]
[347195295,1735558307570,1006.04484634,0.0001247,10]
[347195297,1735558425793,5004.91998516,0.00013102,8]
[347195299,1735558616390,1000.0,0.0002,120]
[347195300,1735558783958,2000.0,0.0002,120]
[347195301,1735558817327,292.98,0.00010137,2]
[347195302,1735558968097,389.0,0.0002,120]
[347195311,1735559019250,719.97,9.461e-05,2]
[347195314,1735559100553,33800.0,0.00012,10]
[347195315,1735559136142,-150.0,0.00011244,2]
[347195316,1735559136165,-150.0,0.00011244,2]
[347195317,1735559136187,-150.0,0.00011244,2]
[347195318,1735559136208,-237.18291264,0.00011244,2]
[347195319,1735559136231,-75.78117896,0.00011322,2]
[347195322,1735559168164,-6000000.0,0.00025252,30]
[347195323,1735559168469,-150.0,0.00011244,2]
[347195324,1735559172820,-6000000.0,0.00025252,30]
[347195325,1735559177463,-6000000.0,0.00025252,30]
[347195326,1735559181235,-6000000.0,0.00025252,30]
[347195327,1735559186157,-6000000.0,0.00025252,30]
[347195328,1735559210635,-2000.0,0.00025252,31]
[347195329,1735559210695,-7606.37495433,0.00025252,35]
[347195330,1735559210748,-14999.999999,0.00025252,31]
[347195331,1735559210805,-5050.0,0.00025252,31]
[347195332,1735559210860,-5050.0,0.00025252,32]
[347195333,1735559210911,-236.69063944,0.00025252,60]
[347195334,1735559210965,-184.53934325,0.00025252,60]
[347195335,1735559211016,-3003.71664147,0.00025252,60]
[347195336,1735559211070,-484.34201646,0.00025252,60]
[347195337,1735559211119,-1000.0,0.00025252,60]
[347195338,1735559211173,-1000.0,0.00025252,60]
[347195339,1735559211220,-1000.0,0.00025252,60]
[347195340,1735559211274,-378.0,0.00025252,120]
[347195341,1735559211728,-610.0,0.00025252,120]
[347195342,1735559211782,-613.56963243,0.00025252,120]
[347195343,1735559211838,-5050.0,0.00025252,33]
[347195344,1735559211890,-3000.0,0.00025252,120]
[347195345,1735559211945,-3000.0,0.00025252,120]
[347195346,1735559211999,-418.46087351,0.00025252,90]
[347195347,1735559212055,-999.999997,0.00025252,120]
[347195348,1735559212110,-272.1195387,0.00025252,91]
[347195349,1735559212168,-301.89168458,0.00025252,120]
[347195350,1735559212217,-885.81184526,0.00025252,120]
[347195351,1735559212271,-209.00840715,0.00025252,120]
[347195352,1735559212322,-850.81894002,0.00025252,120]
[347195353,1735559212377,-166.27303243,0.00025252,120]
[347195354,1735559212426,-699.98154277,0.00025252,120]
[347195355,1735559212480,-416.83601981,0.00025252,120]
[347195356,1735559212533,-1006.79601928,0.00025252,120]
[347195357,1735559212586,-200.05207202,0.00025252,120]
[347195358,1735559212637,-220.8112751,0.00025252,120]
[347195359,1735559212687,-172.10437594,0.00025252,120]
[347195360,1735559212736,-418.93110232,0.00025252,120]
[347195361,1735559212786,-252.20916135,0.00025252,120]
[347195362,1735559212838,-548.34143627,0.00025252,120]
[347195363,1735559212892,-883.43507711,0.00025252,120]
[347195364,1735559212944,-756.0,0.00025252,120]
[347195365,1735559212996,-1093.35830808,0.00025252,120]
[347195366,1735559213051,-367.15257947,0.00025252,120]
[347195367,1735559213100,-155.23132758,0.00025252,120]
[347195368,1735559213155,-174873.0,0.00025252,120]
[347195369,1735559213204,-2015.78450966,0.00025252,120]
[347195370,1735559213256,-204.59807881,0.00025252,90]
[347195371,1735559213310,-159.060587,0.00025252,40]
[347195372,1735559213360,-159.060587,0.00025252,40]
[347195373,1735559219361,-74.21882104,0.00011322,2]
[347195374,1735559219382,-1057.67558403,0.00011375,2]
[347195375,1735559219403,-1000.0,0.0001138,2]
[347195376,1735559219430,-150.0,0.000114,2]
[347195377,1735559220246,1321.14151068,0.00025252,31]
[347195378,1735559222018,300.0,0.000114,2]
[347195379,1735559230220,-6000000.0,0.00025252,30]
[347195380,1735559230272,-166.72,0.00011401,2]
[347195381,1735559230293,-523.05780715,0.00011401,2]
[347195382,1735559230322,-1375.50671039,0.00011401,2]
[347195383,1735559261945,-9000000.0,0.00025252,30]
[347195391,1735559327870,184.03,8.965e-05,2]
[347195394,1735559359135,-23900.0,0.00011422,2]
[347195395,1735559359158,-150.0,0.00011422,2]
[347195396,1735559359179,-150.0,0.00011452,2]
[347195397,1735559359200,-187.08,0.00011475,2]
[347195398,1735559359223,-1500.0,0.00011475,2]
[347195399,1735559359244,-166.82,0.00011478,2]
[347195400,1735559359267,-150.0,0.00011478,2]
[347195401,1735559359292,-1034.66,0.00011485,2]
[347195402,1735559359313,-250.0,0.00011538,2]
[347195403,1735559359337,-38.16212391,0.00011556,2]
[347195406,1735559363102,-21664.7943815,0.00011475,2]
[347195407,1735559364099,-12149.24553984,0.00011475,2]
[347195408,1735559364121,-111.83787609,0.00011556,2]
[347195409,1735559364142,-150.0,0.00011601,2]
[347195410,1735559364164,-150.0,0.00011634,2]
[347195411,1735559364186,-150.0,0.0001166,2]
[347195412,1735559364209,-46.19544693,0.00011712,2]
[347195413,1735559370111,-103.80455307,0.00011712,2]
[347195414,1735559370134,-719.97,0.00011725,2]
[347195415,1735559370154,-150.0,0.00011779,2]
[347195416,1735559370177,-150.0,0.0001179,2]
[347195417,1735559370199,-499.41,0.0001181,2]
[347195418,1735559370221,-504.21,0.0001181,2]
[347195419,1735559370243,-48.86764946,0.0001181,2]
[347195420,1735559372134,-496.6,0.00011475,2]
[347195421,1735559372156,-444.40235054,0.0001181,2]
[347195422,1735559372177,-150.0,0.00011868,2]
[347195423,1735559372199,-150.0,0.00011947,2]
[347195424,1735559372220,-150.0,0.00011958,2]
[347195425,1735559372241,-150.0,0.00012025,2]
[347195426,1735559372262,-150.0,0.00012077,2]
[347195427,1735559372282,-429.34778484,0.0001208,2]
[347195428,1735559372303,-150.0,0.00012103,2]
[347195429,1735559372323,-150.0,0.00012136,2]
[347195430,1735559372344,-150.0,0.00012181,2]
[347195431,1735559372363,-773.86654958,0.000122,2]
[347195454,1735559431621,-451.68,0.00011422,2]
[347195455,1735559431631,-250.0,0.00011453,2]
[347195456,1735559431640,-495.73,0.00011574,2]
[347195457,1735559431650,-502.73,0.00011634,2]
[347195458,1735559431659,-503.16,0.00011724,2]
[347195459,1735559431669,-3242.08025042,0.000122,2]
[347195460,1735559431678,-152.14,0.00012224,2]
[347195461,1735559431688,-726.2914717,0.0001225,2]
[347195462,1735559431698,-150.0,0.00012259,2]
[347195463,1735559431707,-1420.8827,0.0001228,2]
[347195464,1735559431717,-265.3019,0.00012299,2]
[347195465,1735559431727,-17139.5619,0.00012299,2]
[347195466,1735559431737,-513.6757,0.00012299,2]
[347195467,1735559431746,-151.43,0.0001231,2]
[347195468,1735559431756,-1445.1019095,0.00012314,2]
[347195469,1735559431767,-150.0,0.00012315,2]
[347195470,1735559431777,-150.0,0.00012337,2]
[347195485,1735559432063,-3000.0,0.0001237,2]
[347195487,1735559432073,-188.8034,0.00012395,2]
[347195488,1735559432083,-5000.0,0.00012397,2]
[347195489,1735559432093,-221.5144,0.00012397,2]
[347195490,1735559432103,-164.26802109,0.00012398,2]
[347195492,1735559432112,-2661.21483483,0.00012399,2]
[347195494,1735559432122,-2661.21483474,0.00012399,2]
[347195496,1735559432131,-2661.21483474,0.00012399,2]
[347195498,1735559432141,-2661.21483474,0.00012399,2]
[347195501,1735559432151,-2661.21483474,0.00012399,2]
[347195504,1735559432160,-1784.57417256,0.00012399,2]
[347195509,1735559432181,-876.64066218,0.00012399,2]
[347195511,1735559432190,-2661.21483474,0.00012399,2]
[347195513,1735559432199,-2661.21483474,0.00012399,2]
[347195514,1735559432208,-2661.21483474,0.000124,2]
[347195515,1735559432217,-3935.316997,0.000124,2]
[347195516,1735559432227,-581.0478353,0.000124,2]
[347195517,1735559432236,-3000.0,0.000124,2]
[347195518,1735559432245,-200.0,0.000124,2]
[347195519,1735559432255,-419.6893705,0.000124,2]
[347195520,1735559432266,-32462.67677365,0.000124,2]
[347195521,1735559432278,-23092.32322635,0.000124,2]
[347195522,1735559432287,-153.79483732,0.000124,2]
[347195523,1735559432297,-207.3598693,0.000124,2]
[347195524,1735559432307,-490.53438338,0.000124,2]
[347195525,1735559432317,-329.90885954,0.000124,2]
[347195526,1735559432326,-2661.21483474,0.000124,2]
[347195527,1735559432336,-150.0,0.00012415,2]
[347195528,1735559432345,-3000.0,0.0001242,2]
[347195529,1735559432354,-500.0,0.00012473,2]
[347195530,1735559432364,-166.38517418,0.00012473,2]
[347195531,1735559432374,-500.0,0.00012473,2]
[347195532,1735559432384,-500.0,0.00012473,2]
[347195533,1735559432394,-500.0,0.00012473,2]
[347195534,1735559432403,-503.46495799,0.00012473,2]
[347195535,1735559432413,-500.0,0.00012473,2]
[347195536,1735559432423,-201.76517316,0.00012493,2]
[347195537,1735559432433,-276.02039834,0.00012493,2]
[347195538,1735559432442,-154.08043873,0.00012493,2]
[347195539,1735559432452,-150.0,0.00012493,2]
[347195540,1735559432462,-6666.12302,0.00012495,2]
[347195541,1735559432472,-4941.96501724,0.00012495,3]
[347195542,1735559432520,-229.15800276,0.00012495,3]
[347195543,1735559432530,-6666.12302,0.00012496,2]
[347195544,1735559432540,-6666.12302,0.00012496,3]
[347195545,1735559432549,-6666.12302,0.00012496,4]
[347195546,1735559432560,-3672.47293724,0.00012497,4]
[347195547,1735559432571,-2993.65008276,0.00012497,4]
[347195548,1735559432581,-6666.12302,0.00012497,3]
[347195549,1735559432591,-6666.12302,0.00012497,2]
[347195550,1735559432600,-423.42387724,0.00012497,2]
[347195551,1735559432713,-76.64163413,0.00012497,2]
[347195552,1735559437528,-353772.55191694,0.00012497,2]
[347195553,1735559437539,-6666.12302,0.00012498,2]
[347195554,1735559437549,-6666.12302,0.00012498,3]
[347195555,1735559437560,-6666.12302,0.00012498,4]
[347195556,1735559437571,-1052.69074443,0.00012499,3]
[347195557,1735559437581,-1052.69074444,0.00012499,3]
[347195558,1735559437591,-648.4531464,0.00012499,2]
[347195559,1735559437600,-296.72560553,0.00012499,2]
[347195560,1735559437610,-500.0,0.00012499,2]
[347195561,1735559437619,-799.98,0.00012499,2]
[347195562,1735559437629,-791.43382079,0.00012499,2]
[347195563,1735559437640,-32890732.9160683,0.000125,2]
[347195564,1735559437650,-498.12,0.000125,2]
[347195565,1735559437659,-728.7821296,0.00012502,2]
[347195566,1735559437669,-3000.0,0.0001257,2]
[347195567,1735559437679,-200.0,0.00012634,2]
[347195568,1735559437688,-799.98,0.00012636,2]
[347195569,1735559437698,-151.59,0.000127,2]
[347195570,1735559437708,-3000.0,0.0001273,2]
[347195571,1735559437717,-799.98,0.00012773,2]
[347195572,1735559437727,-4468.82906586,0.000128,2]
[347195573,1735559437736,-1000.0,0.00012803,2]
[347195574,1735559437746,-3000.0,0.0001289,2]
[347195575,1735559437756,-2010.4764,0.000129,2]
[347195576,1735559437766,-2000.0,0.000129,2]
[347195582,1735559438053,-2000.0,0.000129,2]
[347195584,1735559438063,-799.98,0.0001291,2]
[347195586,1735559438072,-3000.0,0.0001291,2]
[347195588,1735559438081,-1034.66,0.00012921,2]
[347195590,1735559438091,-899473.52819511,0.00013,2]
[347195592,1735559438103,-7237.2251909,0.00013,2]
[347195594,1735559438115,-3010.0198389,0.00013,2]
[347195597,1735559438126,-3344.49280434,0.00013,2]
[347195602,1735559438163,-7279.70764433,0.00013,2]
[347195604,1735559438175,-8490.05316041,0.00013,2]
[347195606,1735559438186,-396.34001336,0.00013,2]
[347195619,1735559438319,-8597.24972808,0.00013,2]
[347195620,1735559438331,-2851.32088657,0.00013,2]
[347195621,1735559438343,-11873.82782395,0.00013,2]
[347195622,1735559438354,-59529.11919808,0.00013,2]
[347195623,1735559438365,-393.69097478,0.00013,2]
[347195624,1735559438376,-1893.96495137,0.00013,2]
[347195625,1735559438387,-5547.74016914,0.00013,2]
[347195742,1735559439493,-50188.0,0.00013,2]
[347195744,1735559439504,-1913.55287253,0.00013,2]
[347195746,1735559439518,-3456.99788779,0.00013,2]
[347195749,1735559439529,-324.22562728,0.00013,2]
[347195751,1735559439540,-1960.39378412,0.00013,2]
[347195753,1735559439551,-512.83,0.00013,2]
[347195757,1735559439583,-2477.12432777,0.00013,2]
[347195759,1735559439593,-504.7175259,0.00013,2]
[347195762,1735559439605,-957.08025307,0.00013,2]
[347195774,1735559439710,-698.669908,0.00013,2]
[347195776,1735559439721,-519.65,0.00013,2]
[347195778,1735559439733,-325.655,0.00013,2]
[347195782,1735559439763,-1863.17026,0.00013,2]
[347196065,1735559442738,-84.77378804,0.00013,2]
[347196066,1735559442750,-1305.019008,0.00013,2]
[347196067,1735559442804,-1171.95068174,0.00013,2]
[347196069,1735559442892,-507.23,0.00012497,2]
[347196071,1735559442901,-441.87442,0.00013,2]
[347196072,1735559442913,-500.0,0.00013,2]
[347196074,1735559445592,-31314.67650278,0.00012397,2]
[347196075,1735559445603,-185013.62779722,0.00012397,2]
[347196076,1735559445613,-146789.27017707,0.00013,2]
[347196077,1735559445657,-163059.9999995,0.00013,2]
[347196078,1735559445668,-4669.09252339,0.00013,2]
[347196079,1735559445714,-281.59349771,0.00013,2]
[347196080,1735559445787,-2654.53013461,0.00013,2]
[347196081,1735559446145,-2508.75625,0.00013,2]
[347196089,1735559599335,895.2262821,0.0002,120]
[347196090,1735559656609,2500.0,0.00013698,120]
[347196091,1735559656800,154.79850539,0.00013972,120]
[347196092,1735559862541,258.83,0.00010137,2]
[347196095,1735560009454,762.44,9.666e-05,2]
[347196110,1735560355339,-237.55779159,0.00011511,2]
[347196111,1735560355361,-251.00617223,0.00011601,2]
[347196112,1735560355991,184.03,9.2e-05,2]
[347196113,1735560436111,-684.3,0.00011472,2]
[347196114,1735560436133,-250.0,0.0001149,2]
[347196115,1735560436154,-200.68111025,0.000116,2]
[347196116,1735560447095,-99.31888975,0.000116,2]
[347196117,1735560447119,-504.48041735,0.00011601,2]
[347196118,1735560547101,-358.31,0.00011445,2]
[347196119,1735560547123,-192.9,0.00011472,2]
[347196120,1735560547149,-2899.8619896,0.00011601,2]
[347196121,1735560547247,-20244.65142082,0.00011601,2]
[347196122,1735560547271,-497.25,0.00011601,2]
[347196123,1735560547294,-498.09,0.00011601,2]
[347196124,1735560547317,-500.43,0.00011601,2]
[347196125,1735560547339,-1000.0,0.00011611,2]
[347196126,1735560547361,-166.83,0.00011616,2]
[347196127,1735560547385,-150.0,0.00011688,2]
[347196128,1735560547410,-150.0,0.00011688,2]
[347196129,1735560547431,-150.02154323,0.00011688,2]
[347196130,1735560547455,-150.0,0.00011688,2]
[347196131,1735560547477,-150.0,0.00011688,2]
[347196132,1735560550149,-505.1,0.00011746,2]
[347196133,1735560550171,-505.7,0.00011746,2]
[347196134,1735560550194,-425.69147002,0.00011746,2]
[347196160,1735560631716,-506.07,0.00011746,2]
[347196161,1735560631726,-493.93,0.00011746,2]
[347196162,1735560631788,-5.45,0.00011746,2]
[347196163,1735560631798,-504.06,0.00011746,2]
[347196164,1735560631809,-509.05,0.00011746,2]
[347196165,1735560631819,-503.76,0.00011746,2]
[347196166,1735560631829,-1005.97852998,0.00011746,2]
[347196167,1735560631838,-250.0,0.00011799,2]
[347196168,1735560631848,-150.0,0.00011832,2]
[347196169,1735560631858,-1424.263895,0.00011872,2]
[347196170,1735560631887,-746.82209386,0.00011872,2]
[347196171,1735560631898,-488.74401114,0.00011872,2]
[347196172,1735560631907,-167.2,0.00011888,2]
[347196173,1735560631917,-762.44,0.0001193,2]
[347196174,1735560631926,-150.0,0.00011976,2]
[347196177,1735560632187,-450.0,0.00012,2]
[347196180,1735560632204,-300.0,0.00012,4]
[347196181,1735560632215,-505.85,0.00012051,2]
[347196183,1735560632224,-507.57,0.00012071,2]
[347196186,1735560632235,-126.06782499,0.000121,4]
[347196187,1735560632247,-315.56130515,0.000121,4]
[347196191,1735560632274,-158.37086986,0.000121,4]
[347196193,1735560632284,-151.36,0.00012101,2]
[347196195,1735560632294,-150.0,0.00012121,2]
[347196197,1735560632304,-150.0,0.00012121,2]
[347196199,1735560632314,-150.0,0.00012121,2]
[347196200,1735560632323,-1000.0,0.000122,4]
[347196201,1735560632333,-507.23,0.00012247,2]
[347196202,1735560632343,-150.0,0.00012265,2]
[347196203,1735560632353,-2234.2977,0.00012297,2]
[347196204,1735560632363,-1300.0,0.000123,4]
[347196207,1735560632373,-507.45,0.0001232,2]
[347196210,1735560632383,-505.14,0.0001233,2]
[347196212,1735560632392,-463.15896615,0.00012344,2]
[347196216,1735560632421,-29.62103385,0.00012344,2]
[347196218,1735560632431,-497.16,0.00012366,2]
[347196220,1735560632442,-507.47,0.00012366,2]
[347196222,1735560632451,-1000.0,0.00012396,2]
[347196224,1735560632461,-495.89,0.00012397,2]
[347196226,1735560632471,-505.26,0.00012397,2]
[347196228,1735560632481,-1700.0,0.000124,4]
[347196229,1735560632491,-150.0,0.00012409,2]
[347196230,1735560632500,-300.0,0.000125,4]
[347196231,1735560632510,-150.0,0.00012553,2]
[347196232,1735560632519,-150.0,0.00012553,2]
[347196233,1735560632529,-150.0,0.00012553,2]
[347196234,1735560632539,-300.0,0.000126,4]
[347196235,1735560632549,-25795.0,0.00012614,2]
[347196236,1735560632558,-200.0,0.00012697,2]
[347196237,1735560632568,-150.0,0.00012698,2]
[347196238,1735560632578,-300.0,0.000127,4]
[347196239,1735560632588,-363.1457359,0.00012739,2]
[347196240,1735560632598,-152.1,0.000128,2]
[347196241,1735560632609,-300.0,0.000128,4]
[347196242,1735560632619,-429.34778484,0.00012824,2]
[347196243,1735560632630,-150.0,0.00012842,2]
[347196244,1735560632641,-10026.64744927,0.000129,2]
[347196245,1735560632682,-11056.86935073,0.000129,2]
[347196246,1735560632692,-1178.1345,0.000129,2]
[347196247,1735560632702,-150.9113,0.000129,2]
[347196248,1735560632712,-5000.0,0.000129,2]
[347196249,1735560632722,-20706.93304235,0.000129,2]
[347196250,1735560632732,-843.0,0.000129,4]
[347196251,1735560632741,-171.90945656,0.000129,2]
[347196252,1735560632751,-170.0662771,0.000129,2]
[347196253,1735560632761,-500.0,0.00012932,2]
[347196254,1735560632770,-500.0,0.00012973,2]
[347196255,1735560632780,-500.0,0.00012973,2]
[347196256,1735560632790,-500.0,0.00012973,2]
[347196257,1735560632800,-500.0,0.00012973,2]
[347196258,1735560632810,-240.28636083,0.00012986,2]
[347196259,1735560632819,-150.0,0.00012986,2]
[347196260,1735560632829,-150.0,0.00012986,2]
[347196261,1735560632839,-500.0,0.00012999,2]
[347196262,1735560632850,-500.0,0.00012999,2]
[347196263,1735560632859,-500.0,0.00012999,2]
[347196264,1735560632868,-500.0,0.00012999,2]
[347196265,1735560632877,-500.0,0.00012999,2]
[347196266,1735560632887,-500.0,0.00012999,2]
[347196267,1735560632897,-150.0,0.00012999,2]
[347196268,1735560632907,-500.0,0.00012999,2]
[347196269,1735560632916,-500.0,0.00012999,2]
[347196270,1735560632926,-371.76852385,0.00012999,2]
[347196271,1735560632936,-1000.0,0.00012999,2]
[347196272,1735560632948,-500.0,0.00012999,2]
[347196273,1735560632958,-7500.0,0.00012999,2]
[347196274,1735560632969,-2188.0,0.00013,2]
[347196275,1735560632979,-20338.87487413,0.00013,2]
[347196276,1735560632991,-25279.16069654,0.00013,2]
[347196277,1735560633004,-53401.49496303,0.00013,2]
[347196278,1735560633028,-256.82532184,0.00013,2]
[347196279,1735560637495,-499.32,0.00011746,2]
[347196280,1735560637505,-3000.0,0.0001287,2]
[347196281,1735560637514,-2214.0,0.00013,2]
[347196282,1735560637524,-208448.10729015,0.00013,2]
[347196283,1735560637559,-1531.53643252,0.00013,2]
[347196298,1735560639747,-1710.98,0.00013,2]
[347196331,1735560642676,-683.90000001,0.00013,2]
[347196332,1735560642737,-1316.09999999,0.00013,2]
[347196333,1735560642747,-1202260.36933399,0.00013,2]
[347196371,1735560645622,-85306.0943926,0.00013,2]
[347196372,1735560645634,-218698.89412947,0.00013,2]
[347196373,1735560645678,-470.26662024,0.00013,2]
[347196374,1735560645689,-644.42887971,0.00013,2]
[347196375,1735560645700,-3253.2053238,0.00013,2]
[347196376,1735560645735,-2057.86295835,0.00013,2]
[347196377,1735560645790,-3921.81580609,0.00013,2]
[347196378,1735560645802,-2018.50135938,0.00013,2]
[347196380,1735560646012,-1120.07727721,0.00013,2]
[347196445,1735560741141,163.42,0.00010137,2]
[347196447,1735560888930,772.1,9.742e-05,2]
[347196451,1735561014373,-1514.224426,0.00011512,2]
[347196452,1735561014399,-5705.775574,0.0001157,2]
[347196455,1735561253430,263.33,0.00011349,2]
[347196456,1735561265276,250.0,0.00011349,2]
[347196457,1735561369660,1.92559493,0.00011349,2]
[347196458,1735561448727,1000.0,0.0002,120]
[347196459,1735561529793,12407.05,9e-05,2]
[347196460,1735561529815,10000.0,9e-05,2]
[347196461,1735561529840,118457.67151066,9e-05,2]
[347196462,1735561536726,28000.0,8e-05,2]
[347196466,1735561549193,-604.91,0.00011349,2]
[347196467,1735561549215,-248.07440507,0.00011349,2]
[347196468,1735561549238,-178.1842051,0.00011472,2]
[347196469,1735561549261,-152.03,0.00011545,2]
[347196470,1735561549286,-152.03,0.00011551,2]
[347196471,1735561549309,-166.83,0.00011552,2]
[347196472,1735561549333,-152.03,0.00011556,2]
[347196473,1735561549357,-152.03,0.00011561,2]
[347196474,1735561549382,-131.3274062,0.00011566,2]
[347196475,1735561554582,177295.77769154,0.00010656,2]
[347196476,1735561555020,4604.96735545,6.94e-05,2]
[347196477,1735561563168,10008.79148592,9.8e-05,2]
[347196478,1735561567528,11040.18945255,7e-05,2]
[347196479,1735561621036,1500.0,0.0002,120]
[347196480,1735561628105,-200.73122846,0.00011496,2]
[347196481,1735561628131,-20.7025938,0.00011566,2]
[347196482,1735561628156,-463.54717226,0.0001157,2]
[347196483,1735561643682,248.24718186,0.000101,2]
[347196484,1735561651092,-250.0,0.00011534,2]
[347196485,1735561651113,-360.65725374,0.0001157,2]
[347196486,1735561651135,-152.03,0.00011572,2]
[347196487,1735561651157,-152.03,0.00011577,2]
[347196488,1735561651178,-152.03,0.00011582,2]
[347196489,1735561651199,-152.03,0.00011587,2]
[347196490,1735561651221,-152.03,0.00011593,2]
[347196491,1735561651241,-500.0,0.00011596,2]
[347196492,1735561651262,-152.03,0.00011598,2]
[347196493,1735561651283,-152.03,0.00011603,2]
[347196494,1735561651697,-150.0,0.00011688,2]
[347196495,1735561651721,-150.0,0.00011688,2]
[347196496,1735561651743,-166.92,0.00011906,2]
[347196497,1735561651766,-464.36722965,0.00011924,2]
[347196498,1735561677053,52381.62724428,0.0001,2]
[347196499,1735561677722,22651.71797562,0.0001,2]
[347196505,1735561713690,184.26882968,0.0002,120]
[347196510,1735561723173,151.95229041,0.0002,120]
[347196521,1735561745121,-1245.51,0.00011361,2]
[347196522,1735561746116,-167.27,0.00011646,2]
[347196523,1735561746137,-585.55,0.00011651,2]
[347196524,1735561746159,-300.0,0.0001167,2]
[347196525,1735561746180,-1000.0,0.00011671,2]
[347196526,1735561746200,-23900.0,0.00011671,2]
[347196527,1735561746220,-556.93,0.00011671,2]
[347196528,1735561746241,-502.91,0.00011671,2]
[347196529,1735561746263,-400.33503227,0.00011671,2]
[347196530,1735561749389,-90.67496773,0.00011671,2]
[347196531,1735561749411,-503.26,0.00011671,2]
[347196532,1735561752423,72.70364254,0.00011571,2]
[347196533,1735561752444,98.3836,0.00011571,2]
[347196562,1735561831940,-7.09696256,0.00011571,2]
[347196563,1735561831949,-35.33277035,0.00011924,2]